[Event "Turkish Youth Championship 2024"]
[Site "Samsun"]
[Date "2024.05.22"]
[Round "7"]
[White "Demirkan, Mustafa"]
[Black "Ekinci, Berkay"]
[Result "0-1"]
[ECO "B30"]
[WhiteElo "1678"]
[BlackElo "1891"]
[Annotator "NA RC"]
[PlyCount "62"]
[EventDate "2024.05.18"]
[EventType "swiss"]
[EventCountry "TUR"]
[SourceTitle "playchess.com"]
[Source "ChessBase"]
[SourceQuality "1"]
[TimeControl "5400+30"]

1. e4 {[%emt 0:01:00]} c5 {[%emt 0:01:00]} 2. Nf3 {[%emt 0:00:30]} Nc6 {[%emt 0:00:30]} 3. Bb5 {[%emt 0:00:00]} e6 {[%emt 0:00:00]} 4. c3 {[%emt 0:00:00]} d5 {[%emt 0:00:00]} 5. exd5 {[%emt 0:00:00]} Qxd5 {[%emt 0:00:00]} 6. d4 {[%emt 0:01:00]} cxd4 {[%emt 0:00:00]} 7. Bxc6+ {[%emt 0:02:30]} bxc6 {[%emt 0:00:30]} 8. cxd4 {[%emt 0:00:30]} Ba6 {[%emt 0:01:30]} 9. Nc3 {[%emt 0:00:30]} Bb4 {[%emt 0:01:30]} 10. Be3 {[%emt 0:03:30]} Nf6 {[%emt 0:02:30]} 11. Qb3 {[%emt 0:05:30]} Bxc3+ {[%emt 0:10:30]} 12. Qxc3 {[%emt 0:07:30]} O-O {[%emt 0:17:30]} 13. Nd2 {[%emt 0:11:30]} Rab8 {[%emt 0:08:30]} 14. b3 {[%emt 0:04:30]} Qxg2 {[%emt 0:07:30]} 15. O-O-O {[%emt 0:00:30]} Nd5 {[%emt 0:00:30]} 16. Qa5 {[%emt 0:05:30]} Nxe3 {[%emt 0:19:30]} 17. fxe3 {[%emt 0:01:30]} Rb6 {[%emt 0:04:30]} 18. e4 {[%emt 0:04:30]} Qf2 {[%emt 0:01:30]} 19. Qa4 {[%emt 0:04:30]} Rd8 {[%emt 0:02:30]} 20. d5 {[%emt 0:03:30]} cxd5 {[%emt 0:01:04]} 21. exd5 {[%emt 0:01:30]} Rc8+ {[%emt 0:00:54]} 22. Kb2 {[%emt 0:01:30]} Qf6+ {[%emt 0:00:21]} 23. Ka3 {[%emt 0:00:30]} Bb5 {[%emt 0:00:56]} 24. Ne4 {[%emt 0:00:30]} Qe7+ {[%emt 0:05:53]} 25. d6 {[%emt 0:00:00]} Rxd6 {[%emt 0:00:00]} 26. Nxd6 {[%emt 0:01:00]} Bxa4 {[%emt 0:00:00]} 27. Kxa4 {[%emt 0:00:00]} Rd8 {[%emt 0:03:50]} 28. Nc4 {[%emt 0:01:00]} Rd5 {[%emt 0:00:35]} 29. Rxd5 {[%emt 0:01:30]} exd5 {[%emt 0:00:02]} 30. Nd2 {[%emt 0:00:30]} Qe2 {[%emt 0:00:35]} 31. Rc1 {[%emt 0:00:30]} g6 {[%emt 0:00:08]} 0-1

[Event "Turkish Youth Championship 2024"]
[Site "Samsun"]
[Date "2024.05.22"]
[Round "7"]
[White "Incecinar, Abdullah Mete"]
[Black "Bulut, Kemal"]
[Result "0-1"]
[ECO "B53"]
[WhiteElo "1643"]
[BlackElo "1848"]
[Annotator "NA RC"]
[PlyCount "50"]
[EventDate "2024.05.18"]
[EventType "swiss"]
[EventCountry "TUR"]
[SourceTitle "playchess.com"]
[Source "ChessBase"]
[SourceQuality "1"]
[TimeControl "5400+30"]

1. e4 {[%emt 0:01:00]} c5 {[%emt 0:04:00]} 2. Nf3 {[%emt 0:00:00]} d6 {[%emt 0:00:30]} 3. d4 {[%emt 0:00:00]} cxd4 {[%emt 0:00:30]} 4. Qxd4 {[%emt 0:00:30]} Nc6 {[%emt 0:00:30]} 5. Bb5 {[%emt 0:00:00]} Bd7 {[%emt 0:00:30]} 6. Bxc6 {[%emt 0:00:00]} Bxc6 {[%emt 0:00:00]} 7. Nc3 {[%emt 0:00:00]} Nf6 {[%emt 0:00:00]} 8. Bg5 {[%emt 0:00:00]} e6 {[%emt 0:04:30]} 9. O-O-O {[%emt 0:00:30]} Be7 {[%emt 0:00:00]} 10. Rhe1 {[%emt 0:00:00]} O-O {[%emt 0:00:00]} 11. Qd2 {[%emt 0:00:00]} h6 {[%emt 0:00:30]} 12. Bxf6 {[%emt 0:07:30]} Bxf6 {[%emt 0:00:30]} 13. Nd4 {[%emt 0:00:00]} Qb6 {[%emt 0:08:30]} 14. Kb1 {[%emt 0:08:00]} Rac8 {[%emt 0:03:30]} 15. f4 {[%emt 0:06:30]} a5 {[%emt 0:12:30]} 16. g4 {[%emt 0:07:30]} a4 {[%emt 0:03:30]} 17. a3 {[%emt 0:01:30]} Bd7 {[%emt 0:01:30]} 18. f5 {[%emt 0:13:30]} Rc4 {[%emt 0:01:30]} 19. Nde2 {[%emt 0:00:30]} Rxe4 {[%emt 0:01:30]} 20. Qxd6 {[%emt 0:13:30]} Qxd6 {[%emt 0:00:00]} 21. Rxd6 {[%emt 0:00:00]} Bxc3 {[%emt 0:00:00]} 22. bxc3 {[%emt 0:01:00]} Bb5 {[%emt 0:00:00]} 23. Rd2 {[%emt 0:00:30]} exf5 {[%emt 0:00:00]} 24. Kc1 {[%emt 0:00:30]} Rfe8 {[%emt 0:00:30]} 25. Kd1 {[%emt 0:00:00]} f4 {[%emt 0:00:00]} 0-1

[Event "Turkish Youth Championship 2024"]
[Site "Samsun"]
[Date "2024.05.22"]
[Round "7"]
[White "Akyuz, Pars"]
[Black "Ucar, Umut Can"]
[Result "0-1"]
[ECO "D43"]
[WhiteElo "1461"]
[BlackElo "1799"]
[Annotator "NA RC"]
[PlyCount "68"]
[EventDate "2024.05.18"]
[EventType "swiss"]
[EventCountry "TUR"]
[SourceTitle "playchess.com"]
[Source "ChessBase"]
[SourceQuality "1"]
[TimeControl "5400+30"]

1. d4 {[%emt 0:01:00]} Nf6 {[%emt 0:01:00]} 2. c4 {[%emt 0:00:00]} e6 {[%emt 0:00:30]} 3. Nc3 {[%emt 0:00:00]} Bb4 {[%emt 0:00:00]} 4. Qc2 {[%emt 0:00:30]} d5 {[%emt 0:00:00]} 5. Bg5 {[%emt 0:00:30]} h6 {[%emt 0:00:00]} 6. Bxf6 {[%emt 0:00:30]} Qxf6 {[%emt 0:00:00]} 7. e3 {[%emt 0:00:30]} c6 {[%emt 0:00:00]} 8. Nf3 {[%emt 0:00:00]} O-O {[%emt 0:00:00]} 9. Bd3 {[%emt 0:00:00]} Nd7 {[%emt 0:00:30]} 10. O-O {[%emt 0:00:30]} dxc4 {[%emt 0:00:30]} 11. Bxc4 {[%emt 0:00:30]} e5 {[%emt 0:00:30]} 12. Ne4 {[%emt 0:02:30]} Qe7 {[%emt 0:02:30]} 13. a3 {[%emt 0:01:30]} Ba5 {[%emt 0:00:00]} 14. b4 {[%emt 0:03:30]} Bb6 {[%emt 0:01:00]} 15. Rfe1 {[%emt 0:02:30]} exd4 {[%emt 0:00:30]} 16. exd4 {[%emt 0:00:30]} Qd8 {[%emt 0:00:30]} 17. Qb3 {[%emt 0:03:30]} Nf6 {[%emt 0:00:30]} 18. Nxf6+ {[%emt 0:01:30]} Qxf6 {[%emt 0:00:30]} 19. Rad1 {[%emt 0:01:30]} Bg4 {[%emt 0:00:30]} 20. Re3 {[%emt 0:13:30]} Rad8 {[%emt 0:01:30]} 21. Red3 {[%emt 0:06:30]} Bf5 {[%emt 0:04:30]} 22. R3d2 {[%emt 0:01:30]} Be4 {[%emt 0:00:30]} 23. Ne5 {[%emt 0:04:30]} Bd5 {[%emt 0:00:30]} 24. b5 {[%emt 0:09:30]} Bxc4 {[%emt 0:12:30]} 25. Qxc4 {[%emt 0:01:30]} c5 {[%emt 0:00:30]} 26. Nf3 {[%emt 0:05:30]} cxd4 {[%emt 0:01:30]} 27. Nxd4 {[%emt 0:01:30]} Rfe8 {[%emt 0:00:00]} 28. Nc2 {[%emt 0:12:30]} Bxf2+ {[%emt 0:01:00]} 29. Rxf2 {[%emt 0:10:51]} Rxd1+ {[%emt 0:00:30]} 30. Rf1 {[%emt 0:00:10]} Qb6+ {[%emt 0:00:30]} 31. Kh1 {[%emt 0:00:23]} Rxf1+ {[%emt 0:00:30]} 32. Qxf1 {[%emt 0:00:11]} Qc5 {[%emt 0:00:30]} 33. Nb4 {[%emt 0:01:31]} Qc3 {[%emt 0:00:30]} 34. Nd5 {[%emt 0:03:40]} Re1 {[%emt 0:00:30]} 0-1

[Event "Turkish Youth Championship 2024"]
[Site "Samsun"]
[Date "2024.05.23"]
[Round "8"]
[White "Topuz, Mirac Melih"]
[Black "Zeyrek, Ayaz"]
[Result "1-0"]
[ECO "E16"]
[WhiteElo "2079"]
[BlackElo "1750"]
[Annotator "NA RC"]
[PlyCount "61"]
[EventDate "2024.05.18"]
[EventType "swiss"]
[EventCountry "TUR"]
[SourceTitle "playchess.com"]
[Source "ChessBase"]
[SourceQuality "1"]
[TimeControl "5400+30"]

1. d4 {[%emt 0:02:00]} Nf6 {[%emt 0:01:00]} 2. c4 {[%emt 0:00:30]} e6 {[%emt 0:00:30]} 3. Nf3 {[%emt 0:00:00]} b6 {[%emt 0:00:00]} 4. g3 {[%emt 0:00:00]} Bb7 {[%emt 0:00:00]} 5. Bg2 {[%emt 0:00:00]} Bb4+ {[%emt 0:00:30]} 6. Bd2 {[%emt 0:00:00]} Be7 {[%emt 0:00:00]} 7. Nc3 {[%emt 0:00:30]} O-O {[%emt 0:01:00]} 8. O-O {[%emt 0:00:00]} d6 {[%emt 0:00:30]} 9. d5 {[%emt 0:00:00]} e5 {[%emt 0:01:30]} 10. Ne1 {[%emt 0:02:30]} Nbd7 {[%emt 0:00:30]} 11. Rc1 {[%emt 0:00:30]} Ne8 {[%emt 0:01:30]} 12. e4 {[%emt 0:01:30]} g6 {[%emt 0:01:30]} 13. Nc2 {[%emt 0:02:30]} a5 {[%emt 0:01:30]} 14. Qe2 {[%emt 0:02:30]} Ng7 {[%emt 0:01:30]} 15. Kh1 {[%emt 0:07:30]} Nc5 {[%emt 0:09:30]} 16. f4 {[%emt 0:04:30]} Bc8 {[%emt 0:02:30]} 17. Rf2 {[%emt 0:05:30]} Bd7 {[%emt 0:04:30]} 18. Rcf1 {[%emt 0:03:30]} exf4 {[%emt 0:00:00]} 19. Bxf4 {[%emt 0:02:30]} f5 {[%emt 0:07:00]} 20. e5 {[%emt 0:21:30]} g5 {[%emt 0:08:30]} 21. exd6 {[%emt 0:00:30]} cxd6 {[%emt 0:00:30]} 22. Be3 {[%emt 0:00:30]} Bf6 {[%emt 0:00:30]} 23. Bd4 {[%emt 0:00:30]} Re8 {[%emt 0:02:30]} 24. Qd2 {[%emt 0:02:30]} Be5 {[%emt 0:01:30]} 25. Be3 {[%emt 0:17:30]} h6 {[%emt 0:01:30]} 26. Nd4 {[%emt 0:01:30]} Qe7 {[%emt 0:03:30]} 27. Re2 {[%emt 0:04:29]} Qf7 {[%emt 0:08:30]} 28. Nc6 {[%emt 0:03:23]} Bxc6 {[%emt 0:05:30]} 29. dxc6 {[%emt 0:01:20]} Qh5 {[%emt 0:02:30]} 30. Nd5 {[%emt 0:01:06]} Rab8 {[%emt 0:03:30]} 31. Bxc5 {[%emt 0:00:10]} 1-0

[Event "Turkish Youth Championship 2024"]
[Site "Samsun"]
[Date "2024.05.23"]
[Round "8"]
[White "Buyuk, Eymen Eren"]
[Black "Tonoglu, Engin Erdem"]
[Result "1/2-1/2"]
[ECO "E44"]
[WhiteElo "1999"]
[BlackElo "1691"]
[Annotator "RC"]
[PlyCount "130"]
[EventDate "2024.05.18"]
[EventType "swiss"]
[EventCountry "TUR"]
[SourceTitle "playchess.com"]
[Source "ChessBase"]
[SourceQuality "1"]
[TimeControl "5400+30"]

1. d4 {[%emt 0:01:00]} Nf6 {[%emt 0:01:00]} 2. c4 {[%emt 0:01:30]} e6 {[%emt 0:00:30]} 3. Nc3 {[%emt 0:00:30]} Bb4 {[%emt 0:00:00]} 4. e3 {[%emt 0:00:00]} b6 {[%emt 0:00:00]} 5. Nge2 {[%emt 0:00:00]} Bb7 {[%emt 0:00:30]} 6. a3 {[%emt 0:00:30]} Be7 {[%emt 0:00:30]} 7. d5 {[%emt 0:00:30]} d6 {[%emt 0:08:30]} 8. Ng3 {[%emt 0:03:30]} Nbd7 {[%emt 0:04:30]} 9. Be2 {[%emt 0:03:30]} O-O {[%emt 0:00:30]} 10. O-O {[%emt 0:00:30]} Re8 {[%emt 0:00:30]} 11. e4 {[%emt 0:02:30]} Bf8 {[%emt 0:05:30]} 12. Be3 {[%emt 0:04:30]} g6 {[%emt 0:02:30]} 13. Qd2 {[%emt 0:01:30]} Nc5 {[%emt 0:02:30]} 14. Qc2 {[%emt 0:09:30]} Bg7 {[%emt 0:01:30]} 15. b4 {[%emt 0:03:30]} Ncd7 {[%emt 0:05:30]} 16. Rad1 {[%emt 0:00:30]} a6 {[%emt 0:09:30]} 17. a4 {[%emt 0:12:30]} a5 {[%emt 0:03:30]} 18. b5 {[%emt 0:00:30]} e5 {[%emt 0:08:30]} 19. f3 {[%emt 0:03:30]} Qe7 {[%emt 0:03:30]} 20. Qc1 {[%emt 0:04:30]} Nc5 {[%emt 0:04:30]} 21. Bg5 {[%emt 0:04:30]} Qf8 {[%emt 0:01:30]} 22. h4 {[%emt 0:05:30]} h6 {[%emt 0:03:30]} 23. Be3 {[%emt 0:00:30]} h5 {[%emt 0:00:00]} 24. Qc2 {[%emt 0:03:30]} Bh6 {[%emt 0:04:00]} 25. Bf2 {[%emt 0:15:56]} Qg7 {[%emt 0:01:30]} 26. Rfe1 {[%emt 0:01:38]} Rad8 {[%emt 0:01:30]} 27. Nf1 {[%emt 0:00:24]} Bc8 {[%emt 0:01:30]} 28. Ne3 {[%emt 0:01:04]} Kh8 {[%emt 0:05:30]} 29. g4 {[%emt 0:04:04]} hxg4 {[%emt 0:01:30]} 30. Nxg4 {[%emt 0:01:14]} Bf4 {[%emt 0:01:32]} 31. Nxf6 {[%emt 0:00:43]} Qxf6 {[%emt 0:00:28]} 32. Kg2 {[%emt 0:00:00]} Kg7 {[%emt 0:00:30]} 33. Rh1 {[%emt 0:01:33]} Rh8 {[%emt 0:00:30]} 34. Rdg1 {[%emt 0:00:22]} Rh5 {[%emt 0:00:30]} 35. Bd1 {[%emt 0:00:56]} Rdh8 {[%emt 0:02:00]} 36. Ne2 {[%emt 0:02:10]} R5h7 {[%emt 0:02:33]} 37. Nxf4 {[%emt 0:01:14]} Qxf4 {[%emt 0:00:22]} 38. Bg3 {[%emt 0:02:19]} Qe3 {[%emt 0:01:10]} 39. Re1 {[%emt 0:00:20]} Qh6 {[%emt 0:01:42]} 40. Qc3 {[%emt 0:00:44]} f6 {[%emt 0:00:44]} 41. Bf2 {[%emt 0:02:15]} Kf7 {[%emt 0:00:41]} 42. Reg1 {[%emt 0:02:41]} Qg7 {[%emt 0:01:33]} 43. Qd2 {[%emt 0:00:42]} Nd7 {[%emt 0:04:35]} 44. f4 {[%emt 0:01:09]} exf4 {[%emt 0:01:34]} 45. Qxf4 {[%emt 0:00:30]} Ne5 {[%emt 0:00:00]} 46. Kf1 {[%emt 0:00:00]} g5 {[%emt 0:00:31]} 47. Qd2 {[%emt 0:02:44]} Ng6 {[%emt 0:00:30]} 48. c5 {[%emt 0:00:30]} dxc5 {[%emt 0:00:30]} 49. d6 {[%emt 0:00:30]} Ke8 {[%emt 0:00:30]} 50. Qd5 {[%emt 0:00:30]} cxd6 {[%emt 0:00:30]} 51. Qc6+ {[%emt 0:00:30]} Qd7 {[%emt 0:00:30]} 52. Qxb6 {[%emt 0:00:30]} Qd8 {[%emt 0:00:30]} 53. Qc6+ {[%emt 0:00:30]} Qd7 {[%emt 0:00:30]} 54. Qa8 {[%emt 0:00:30]} Qb7 {[%emt 0:00:30]} 55. Qxa5 {[%emt 0:00:30]} Qxe4 {[%emt 0:00:30]} 56. Qc3 {[%emt 0:00:30]} Re7 {[%emt 0:00:30]} 57. Bf3 {[%emt 0:00:30]} Qb1+ {[%emt 0:00:30]} 58. Kg2 {[%emt 0:00:30]} Qf5 {[%emt 0:00:30]} 59. Bc6+ {[%emt 0:00:30]} Kf8 {[%emt 0:07:00]} 60. Rf1 {[%emt 0:00:31]} Nf4+ {[%emt 0:00:30]} 61. Kh2 {[%emt 0:00:30]} Re2 {[%emt 0:00:30]} 62. Kg1 {[%emt 0:00:02]} gxh4 {[%emt 0:00:10]} 63. Rh2 {[%emt 0:00:35]} Rg8+ {[%emt 0:02:37]} 64. Kh1 {[%emt 0:00:30]} Bd7 {[%emt 0:00:30]} 65. Bf3 {[%emt 0:00:30]} Re7 {[%emt 0:00:30]} 1/2-1/2

[Event "Turkish Youth Championship 2024"]
[Site "Samsun"]
[Date "2024.05.23"]
[Round "8"]
[White "Ilgaz, Yusuf Kerem"]
[Black "Cilek, Bora"]
[Result "0-1"]
[ECO "B41"]
[WhiteElo "1964"]
[BlackElo "2246"]
[Annotator "RC"]
[PlyCount "59"]
[EventDate "2024.05.18"]
[EventType "swiss"]
[EventCountry "TUR"]
[SourceTitle "playchess.com"]
[Source "ChessBase"]
[SourceQuality "1"]
[TimeControl "5400+30"]

1. e4 {[%emt 0:01:00]} c5 {[%emt 0:01:00]} 2. Nf3 {[%emt 0:00:00]} e6 {[%emt 0:00:00]} 3. d4 {[%emt 0:00:00]} cxd4 {[%emt 0:00:00]} 4. Nxd4 {[%emt 0:00:00]} a6 {[%emt 0:00:30]} 5. c4 {[%emt 0:01:00]} Nf6 {[%emt 0:00:00]} 6. Nc3 {[%emt 0:00:30]} Qc7 {[%emt 0:00:00]} 7. a3 {[%emt 0:00:30]} b6 {[%emt 0:00:00]} 8. Be2 {[%emt 0:00:30]} Bb7 {[%emt 0:00:00]} 9. f3 {[%emt 0:02:30]} Be7 {[%emt 0:00:30]} 10. O-O {[%emt 0:00:30]} O-O {[%emt 0:02:30]} 11. Kh1 {[%emt 0:01:30]} Nc6 {[%emt 0:03:30]} 12. Nxc6 {[%emt 0:03:30]} dxc6 {[%emt 0:07:30]} 13. Be3 {[%emt 0:04:30]} c5 {[%emt 0:00:30]} 14. Qc2 {[%emt 0:02:30]} Rad8 {[%emt 0:06:30]} 15. Rab1 {[%emt 0:07:30]} Nd7 {[%emt 0:04:30]} 16. b4 {[%emt 0:12:30]} Ne5 {[%emt 0:20:30]} 17. Na4 {[%emt 0:09:30]} Bc6 {[%emt 0:02:30]} 18. b5 {[%emt 0:06:30]} axb5 {[%emt 0:01:30]} 19. cxb5 {[%emt 0:00:30]} Bb7 {[%emt 0:00:30]} 20. Nb2 {[%emt 0:02:30]} Kh8 {[%emt 0:14:30]} 21. Bf4 {[%emt 0:05:30]} Bd6 {[%emt 0:03:30]} 22. Rbd1 {[%emt 0:04:30]} f6 {[%emt 0:05:30]} 23. Bg3 {[%emt 0:01:30]} Nf7 {[%emt 0:03:30]} 24. f4 {[%emt 0:03:30]} e5 {[%emt 0:02:30]} 25. f5 {[%emt 0:02:30]} Qb8 {[%emt 0:00:30]} 26. Bc4 {[%emt 0:00:30]} Qa8 {[%emt 0:00:30]} 27. Bxf7 {[%emt 0:00:30]} Rxf7 {[%emt 0:00:30]} 28. Kg1 {[%emt 0:14:05]} Bc7 {[%emt 0:10:35]} 29. Nc4 {[%emt 0:04:22]} Rfd7 {[%emt 0:00:00]} 30. Rxd7 {[%emt 0:10:23]} 0-1

[Event "Turkish Youth Championship 2024"]
[Site "Samsun"]
[Date "2024.05.23"]
[Round "8"]
[White "Turgut, Hakan"]
[Black "Cagatay, Mehmet Kayra"]
[Result "1-0"]
[ECO "E05"]
[WhiteElo "1954"]
[BlackElo "1717"]
[Annotator "RC"]
[PlyCount "167"]
[EventDate "2024.05.18"]
[EventType "swiss"]
[EventCountry "TUR"]
[SourceTitle "playchess.com"]
[Source "ChessBase"]
[SourceQuality "1"]
[TimeControl "5400+30"]

1. d4 {[%emt 0:02:00]} Nf6 {[%emt 0:01:00]} 2. g3 {[%emt 0:00:30]} e6 {[%emt 0:01:30]} 3. Bg2 {[%emt 0:00:30]} d5 {[%emt 0:00:00]} 4. Nf3 {[%emt 0:00:30]} Be7 {[%emt 0:00:00]} 5. O-O {[%emt 0:00:30]} O-O {[%emt 0:00:30]} 6. c4 {[%emt 0:00:00]} dxc4 {[%emt 0:03:30]} 7. Qc2 {[%emt 0:00:00]} b6 {[%emt 0:00:00]} 8. Ne5 {[%emt 0:00:30]} Qxd4 {[%emt 0:00:00]} 9. Bxa8 {[%emt 0:00:30]} Qxe5 {[%emt 0:00:30]} 10. Bf3 {[%emt 0:00:30]} Ba6 {[%emt 0:09:30]} 11. Bf4 {[%emt 0:07:30]} Qc5 {[%emt 0:01:30]} 12. Be3 {[%emt 0:05:30]} Qb5 {[%emt 0:15:30]} 13. Nc3 {[%emt 0:01:30]} Qa5 {[%emt 0:01:30]} 14. Bd2 {[%emt 0:07:30]} Qc5 {[%emt 0:02:30]} 15. a4 {[%emt 0:06:30]} Nc6 {[%emt 0:05:30]} 16. Be3 {[%emt 0:01:30]} Nd4 {[%emt 0:00:30]} 17. Bxd4 {[%emt 0:00:30]} Qxd4 {[%emt 0:00:30]} 18. Nb5 {[%emt 0:00:30]} Qc5 {[%emt 0:04:30]} 19. Rfc1 {[%emt 0:01:30]} c6 {[%emt 0:00:30]} 20. Na3 {[%emt 0:00:30]} Nd5 {[%emt 0:00:00]} 21. Nxc4 {[%emt 0:00:30]} Nb4 {[%emt 0:00:00]} 22. Qb3 {[%emt 0:04:30]} Bg5 {[%emt 0:02:30]} 23. Ne3 {[%emt 0:00:30]} Qa5 {[%emt 0:00:30]} 24. h4 {[%emt 0:01:30]} Be7 {[%emt 0:01:30]} 25. Nc2 {[%emt 0:03:30]} Nxc2 {[%emt 0:03:30]} 26. Rxc2 {[%emt 0:01:30]} c5 {[%emt 0:00:30]} 27. Qc3 {[%emt 0:01:30]} Qxc3 {[%emt 0:00:30]} 28. Rxc3 {[%emt 0:00:30]} Bf6 {[%emt 0:00:30]} 29. Rc2 {[%emt 0:00:30]} Rd8 {[%emt 0:00:30]} 30. a5 {[%emt 0:00:30]} Bb5 {[%emt 0:00:30]} 31. axb6 {[%emt 0:00:30]} axb6 {[%emt 0:00:00]} 32. Ra7 {[%emt 0:03:30]} g6 {[%emt 0:00:00]} 33. h5 {[%emt 0:02:30]} Be5 {[%emt 0:04:30]} 34. e3 {[%emt 0:08:30]} Kg7 {[%emt 0:03:30]} 35. h6+ {[%emt 0:03:30]} Kf6 {[%emt 0:00:00]} 36. Be4 {[%emt 0:03:30]} Rd1+ {[%emt 0:03:00]} 37. Kg2 {[%emt 0:01:30]} Bf1+ {[%emt 0:01:30]} 38. Kh2 {[%emt 0:00:30]} c4 {[%emt 0:01:30]} 39. f4 {[%emt 0:00:30]} Bd6 {[%emt 0:00:30]} 40. Rd7 {[%emt 0:07:30]} Bd3 {[%emt 0:14:30]} 41. Bxd3 {[%emt 0:01:30]} cxd3 {[%emt 0:00:30]} 42. Rc3 {[%emt 0:00:30]} Rd2+ {[%emt 0:00:00]} 43. Kh3 {[%emt 0:01:30]} Bc5 {[%emt 0:00:00]} 44. Rcxd3 {[%emt 0:08:32]} Rxb2 {[%emt 0:00:30]} 45. g4 {[%emt 0:03:23]} g5 {[%emt 0:01:30]} 46. fxg5+ {[%emt 0:01:00]} Kg6 {[%emt 0:00:30]} 47. Kg3 {[%emt 0:01:19]} Rb1 {[%emt 0:02:33]} 48. Rb7 {[%emt 0:00:58]} Rg1+ {[%emt 0:01:55]} 49. Kf3 {[%emt 0:00:05]} Kxg5 {[%emt 0:01:19]} 50. Rd8 {[%emt 0:02:37]} Kxh6 {[%emt 0:09:26]} 51. Kf2 {[%emt 0:01:51]} Rxg4 {[%emt 0:01:49]} 52. Rxf7 {[%emt 0:00:06]} Re4 {[%emt 0:00:50]} 53. Rf3 {[%emt 0:00:30]} Kg7 {[%emt 0:00:30]} 54. Rd7+ {[%emt 0:00:30]} Kg6 {[%emt 0:00:30]} 55. Rg3+ {[%emt 0:00:30]} Kh6 {[%emt 0:00:30]} 56. Rh3+ {[%emt 0:00:30]} Kg6 {[%emt 0:00:30]} 57. Rg3+ {[%emt 0:00:30]} Kh6 {[%emt 0:00:30]} 58. Rh3+ {[%emt 0:00:30]} Kg6 {[%emt 0:00:30]} 59. Rd3 {[%emt 0:00:30]} h5 {[%emt 0:00:30]} 60. Kf3 {[%emt 0:00:30]} Rg4 {[%emt 0:00:30]} 61. Rd8 {[%emt 0:00:30]} Rg5 {[%emt 0:00:30]} 62. Ke4 {[%emt 0:00:30]} Kf6 {[%emt 0:00:30]} 63. Kd3 {[%emt 0:00:30]} Kf5 {[%emt 0:00:30]} 64. Rh8 {[%emt 0:00:30]} Kg4 {[%emt 0:00:30]} 65. Rh1 {[%emt 0:03:59]} Rd5+ {[%emt 0:03:29]} 66. Ke4 {[%emt 0:00:15]} Rg5 {[%emt 0:03:42]} 67. Ra8 {[%emt 0:00:56]} Kg3 {[%emt 0:00:35]} 68. Raa1 {[%emt 0:00:39]} Rg4+ {[%emt 0:00:36]} 69. Kd3 {[%emt 0:00:07]} h4 {[%emt 0:00:22]} 70. Rag1+ {[%emt 0:00:38]} Kf3 {[%emt 0:00:08]} 71. Rf1+ {[%emt 0:00:00]} Kg3 {[%emt 0:00:08]} 72. Ke2 {[%emt 0:00:26]} h3 {[%emt 0:00:58]} 73. Rf3+ {[%emt 0:00:16]} Kh4 {[%emt 0:00:28]} 74. Rfxh3+ {[%emt 0:00:02]} Kg5 {[%emt 0:00:00]} 75. Rh6 {[%emt 0:00:49]} Kf5 {[%emt 0:00:46]} 76. R1h5+ {[%emt 0:00:29]} Rg5 {[%emt 0:00:09]} 77. Rxg5+ {[%emt 0:00:10]} Kxg5 {[%emt 0:00:30]} 78. Rxe6 {[%emt 0:00:09]} Kf5 {[%emt 0:00:03]} 79. Re8 {[%emt 0:00:09]} Kf6 {[%emt 0:00:12]} 80. Kd3 {[%emt 0:00:12]} b5 {[%emt 0:00:15]} 81. Ke4 {[%emt 0:00:48]} b4 {[%emt 0:00:39]} 82. Kd5 {[%emt 0:00:18]} Kf7 {[%emt 0:00:28]} 83. Re4 {[%emt 0:01:12]} Be7 {[%emt 0:00:13]} 84. Re6 {[%emt 0:00:18]} 1-0

[Event "Turkish Youth Championship 2024"]
[Site "Samsun"]
[Date "2024.05.23"]
[Round "8"]
[White "Ozgun, Yigit Deniz"]
[Black "Danaci, Ege"]
[Result "1-0"]
[ECO "E94"]
[WhiteElo "1917"]
[BlackElo "2031"]
[Annotator "NA RC"]
[PlyCount "103"]
[EventDate "2024.05.18"]
[EventType "swiss"]
[EventCountry "TUR"]
[SourceTitle "playchess.com"]
[Source "ChessBase"]
[SourceQuality "1"]
[TimeControl "5400+30"]

1. d4 {[%emt 0:11:00]} Nf6 {[%emt 0:02:00]} 2. c4 {[%emt 0:02:30]} g6 {[%emt 0:00:30]} 3. Nc3 {[%emt 0:00:30]} Bg7 {[%emt 0:00:30]} 4. e4 {[%emt 0:00:30]} O-O {[%emt 0:00:00]} 5. Nf3 {[%emt 0:00:30]} d6 {[%emt 0:00:00]} 6. Be2 {[%emt 0:00:00]} e5 {[%emt 0:00:30]} 7. O-O {[%emt 0:01:00]} Na6 {[%emt 0:00:00]} 8. Re1 {[%emt 0:00:30]} c6 {[%emt 0:02:00]} 9. Be3 {[%emt 0:00:30]} Ng4 {[%emt 0:11:30]} 10. Bg5 {[%emt 0:00:30]} Qc7 {[%emt 0:00:30]} 11. h3 {[%emt 0:05:30]} f6 {[%emt 0:18:30]} 12. Bh4 {[%emt 0:06:30]} Nh6 {[%emt 0:00:00]} 13. c5 {[%emt 0:05:30]} dxc5 {[%emt 0:04:00]} 14. dxe5 {[%emt 0:00:30]} fxe5 {[%emt 0:01:30]} 15. Bxa6 {[%emt 0:01:30]} bxa6 {[%emt 0:00:00]} 16. Na4 {[%emt 0:01:30]} c4 {[%emt 0:01:00]} 17. Rc1 {[%emt 0:00:30]} Qf7 {[%emt 0:05:30]} 18. Rc3 {[%emt 0:05:30]} Bf6 {[%emt 0:13:30]} 19. Bxf6 {[%emt 0:03:30]} Qxf6 {[%emt 0:00:30]} 20. Qe2 {[%emt 0:00:30]} Be6 {[%emt 0:12:30]} 21. Nc5 {[%emt 0:00:30]} Rab8 {[%emt 0:01:30]} 22. Rb1 {[%emt 0:01:30]} Nf7 {[%emt 0:05:30]} 23. Nxe6 {[%emt 0:02:30]} Qxe6 {[%emt 0:00:30]} 24. Qxc4 {[%emt 0:00:00]} Qxc4 {[%emt 0:00:30]} 25. Rxc4 {[%emt 0:00:00]} Rfc8 {[%emt 0:00:30]} 26. b3 {[%emt 0:00:30]} Nd6 {[%emt 0:06:25]} 27. Ra4 {[%emt 0:00:30]} Rb5 {[%emt 0:00:05]} 28. Rd1 {[%emt 0:00:30]} Nf7 {[%emt 0:02:19]} 29. Rd7 {[%emt 0:00:30]} a5 {[%emt 0:01:40]} 30. Rxa7 {[%emt 0:00:30]} Rd8 {[%emt 0:00:06]} 31. R7xa5 {[%emt 0:00:00]} Rd1+ {[%emt 0:00:41]} 32. Kh2 {[%emt 0:00:00]} Nd6 {[%emt 0:00:00]} 33. Ra8+ {[%emt 0:01:30]} Kg7 {[%emt 0:00:07]} 34. R4a7+ {[%emt 0:00:00]} Nb7 {[%emt 0:00:00]} 35. Rb8 {[%emt 0:01:00]} Rd7 {[%emt 0:00:03]} 36. Nxe5 {[%emt 0:00:00]} Rxe5 {[%emt 0:00:39]} 37. Rbxb7 {[%emt 0:00:00]} Rxb7 {[%emt 0:00:00]} 38. Rxb7+ {[%emt 0:00:30]} Kf6 {[%emt 0:00:04]} 39. f3 {[%emt 0:00:30]} h5 {[%emt 0:00:30]} 40. h4 {[%emt 0:00:30]} Rc5 {[%emt 0:00:30]} 41. a4 {[%emt 0:00:00]} Rc1 {[%emt 0:00:00]} 42. b4 {[%emt 0:00:00]} Ra1 {[%emt 0:00:00]} 43. a5 {[%emt 0:00:00]} c5 {[%emt 0:00:00]} 44. Rb6+ {[%emt 0:00:00]} Kf7 {[%emt 0:00:00]} 45. bxc5 {[%emt 0:00:30]} Rxa5 {[%emt 0:00:00]} 46. c6 {[%emt 0:00:30]} Rc5 {[%emt 0:00:00]} 47. Kg3 {[%emt 0:00:00]} Rc2 {[%emt 0:00:11]} 48. Rb7+ {[%emt 0:00:00]} Kf6 {[%emt 0:00:06]} 49. Rc7 {[%emt 0:00:30]} Ke5 {[%emt 0:00:03]} 50. Rc8 {[%emt 0:00:00]} Kd4 {[%emt 0:00:20]} 51. c7 {[%emt 0:01:00]} Ke3 {[%emt 0:00:30]} 52. e5 {[%emt 0:00:00]} 1-0